Cogmind - Beta 15 @@@ ROGUE MODE // 2025.09.22 @ 01:34:03 Player: c4-BRK Result: Destroyed by Autobeam Turret with Autobeam Performance ------------- Evolutions (0) 0 Regions Visited (2) 400 Robots Destroyed (20) 100 Value Destroyed (560) 560 Prototype IDs (0) 0 Alien Tech Used (0) 0 Bonus (0) 0 TOTAL SCORE: 1060 Bonus ------- None Cogmind --------- Core Integrity 0/250 Matter 290/300 Energy 200/200 System Corruption 0% Temperature Cool (6) Movement Rolling (110) Location -10/Subcaves Parts ------- > --- POWER (1) -------- Subdweller Power Source > --- PROPULSION (2) --- Subdweller Monowheel Subdweller Monowheel > --- UTILITY (2) ------ Small Storage Unit Core Shielding > --- WEAPON (2) ------- Subdweller Beam Cannon Subdweller Beam Cannon > --- INVENTORY (8) ---- Subdweller Power Source Improved Heat Sink Subdweller Optics Scrap Shield Subdweller Laser Subdweller Machine Gun Grenade Launcher Peak State ------------ > --- POWER ------------ Subdweller Power Source > --- PROPULSION ------- Subdweller Monowheel Subdweller Monowheel > --- UTILITY ---------- Small Storage Unit Core Shielding > --- WEAPON ----------- Subdweller Beam Cannon Subdweller Beam Cannon > --- INVENTORY -------- Subdweller Power Source Improved Heat Sink Subdweller Optics Medium Laser Subdweller Laser Assault Rifle Subdweller Machine Gun Grenade Launcher [Rating: 13] Favorites ----------- Power Ion Engine Engine Ion Engine Propulsion Wheel Wheel Wheel Utility Small Storage Unit Storage Small Storage Unit Protection Core Shielding Weapon Subdweller Beam Cannon Energy Gun Medium Laser Energy Cannon Subdweller Beam Cannon Ballistic Gun Assault Rifle Build | -11 -10 -10 ------- Run | Yrd Mat Sub Slots Evolved . | . . . Power . | . . . Propulsion . | . . . Utility . | . . . Weapon . | . . . Parts Attached 17 | 6 2 9 Power 3 | 1 . 2 Engine 3 | 1 . 2 Core . | . . . Reactor . | . . . Propulsion 6 | 2 . 4 Treads . | . . . Leg . | . . . Wheel 6 | 2 . 4 Hover . | . . . Flight . | . . . Utility 2 | 1 1 . Device . | . . . Storage 1 | 1 . . Processor . | . . . Hackware . | . . . Protection 1 | . 1 . Artifact . | . . . Weapon 6 | 2 1 3 Energy Gun 1 | . 1 . Energy Cannon 2 | . . 2 Ballistic Gun 3 | 2 . 1 Ballistic Cannon . | . . . Launcher . | . . . Special Weapon . | . . . Impact Weapon . | . . . Slashing Weapon . | . . . Piercing Weapon . | . . . Special Melee Weapon . | . . . Unidentified Prototypes . | . . . Parts Lost 5 | . . 5 Power 1 | . . 1 Propulsion 3 | . . 3 Utility . | . . . Weapon 1 | . . 1 Highest Loss Streak 1 | . . 1 To Critical Strikes . | . . . Average Backups 5 | . 2 6 Power . | . . . Propulsion . | . . . Utility 1 | . . 2 Weapon 3 | . 1 4 Tool/Special . | . . . Unused Backups 7 | . . 7 Power . | . . . Propulsion . | . . . Utility 3 | . . 3 Weapon 4 | . . 4 Tool/Special . | . . . Average Slot Usage (%) 89 | . 91 88 Engine 11 | . 14 10 Wheel 22 | . 28 20 Storage 14 | . 14 14 Protection 11 | . 6 14 Energy Gun 4 | . 7 2 Energy Cannon 13 | . . 18 Ballistic Gun 10 | . 20 6 Peak Build Rating 13 | 6 7 13 Average Rating 8 | 4 6 9 On Entrance 4 | . 6 7 Naked Turns . | . . . Heaviest Build 27 | 13 15 27 Greatest Support 40 | 20 20 40 Greatest Overweight (x) 8 | . . 8 Average Overweight (x) . | . . . Largest Inventory Capacity 8 | 8 8 8 Average Capacity 7 | 7 8 8 Most Carried 8 | 2 4 8 Average Carried 5 | . 2 7 Final Capacity 8 | 8 8 8 Final Carried 8 | . 4 8 Class Distribution -------------------- 100% | Mutant Dominant Class ---------------- Mutant | -10/Materials Mutant | -10/Subcaves Resources | -11 -10 -10 ----------- Run | Yrd Mat Sub Matter Collected 482 | 222 129 131 Remotely . | . . . Salvage Created 714 | . 233 481 Parts 34 | . 12 22 Haulers Intercepted 1 | . 1 . Recyclers Shooed . | . . . Parts Field Recycled . | . . . Retrieved Matter . | . . . Parts Self-Destructed 9 | . . 9 Prevented . | . . . Kills | -11 -10 -10 ------- Run | Yrd Mat Sub Combat Hostiles Destroyed 18 | . 8 10 Guns 11 | . 8 3 Cannons 6 | . . 6 Classes Destroyed 5 | . 4 1 Hauler 1 | . 1 . Watcher 1 | . 1 . Swarmer 6 | . 6 . Grunt 4 | . 2 2 Subdweller 8 | . . 8 Best Kill Streak 4 | . 4 4 Combat Bots Only 4 | . 3 4 Max Kills in Single Turn 2 | . 2 1 Gunslinging 1 | . 1 . Exploded . | . . . Melee . | . . . Uniques/NPCs Destroyed . | . . . Combat | -11 -10 -10 -------- Run | Yrd Mat Sub Hostile Shots Fired 92 | . 38 54 Missed 26 | . 10 16 Hits 66 | . 28 38 Projectile 66 | . 28 38 Critical Strikes 1 | . 1 . Damage Taken 1049 | . 263 786 Core 253 | . 120 133 Absorbed by Shields . | . . . Redirected to Shielding 41 | . 14 27 Core Remaining (%) 100 | 100 . . Volleys Fired 57 | . 24 33 Largest 2 | . 2 2 Hottest 160 | . 70 160 Shots Fired 110 | . 48 62 Gun 80 | . 48 32 Cannon 30 | . . 30 Launcher . | . . . Special . | . . . Kinetic 49 | . 28 21 Thermal 61 | . 20 41 Explosive . | . . . Electromagnetic . | . . . Robot Hit Streak 12 | . 6 12 Robot Miss Streak 2 | . 2 1 Penetration Max . | . . . Secondary Targets 4 | . 3 1 Max Gunslinging Chain 1 | . 1 1 Shots Hit Robots 77 | . 30 47 Core Hits 29 | . 16 13 Critical Kills 1 | . . 1 Critical Parts Destroyed . | . . . Critical Strikes 5 | . 3 2 Burn 3 | . 3 . Meltdown 1 | . . 1 Destroy 1 | . . 1 Melee Attacks . | . . . Impact . | . . . Slashing . | . . . Piercing . | . . . Sneak Attacks . | . . . Combat Hostiles . | . . . Follow-up Attacks . | . . . Damage Inflicted 1320 | . 379 941 Guns 688 | . 379 309 Cannons 632 | . . 632 Explosions . | . . . Melee . | . . . Ramming . | . . . Kinetic 461 | . 229 232 Thermal 859 | . 150 709 Explosive . | . . . Electromagnetic . | . . . Impact . | . . . Slashing . | . . . Piercing . | . . . Highest Corruption . | . . . Average Corruption . | . . . Corruption Purged . | . . . Corruption Blocked . | . . . Overload Shots . | . . . Overflow Damage . | . . . Projectiles . | . . . Explosions . | . . . Melee . | . . . Knockbacks . | . . . Impact . | . . . Kinetic . | . . . Secondary . | . . . Self-Inflicted Damage . | . . . Shots . | . . . Rammed . | . . . Targets Rammed . | . . . Kicked . | . . . Crushed . | . . . Highest Temperature 174 | . 94 174 Average Temperature 36 | . 26 55 Received Heat Transfer 225 | . 60 165 Siege Activations . | . . . Martial Activations . | . . . Shielding Activations . | . . . Robots Disrupted . | . . . Combat Hostiles . | . . . Robots Corrupted . | . . . Combat Hostiles . | . . . Parts Fried . | . . . Impact Corruptions . | . . . Robots Melted 1 | . . 1 Combat Hostiles 1 | . . 1 Parts Melted 3 | . . 3 Heat Transferred 1739 | . 666 1073 Parts Sabotaged . | . . . Parts Stolen . | . . . Parts Stripped . | . . . Power Chain Reactions . | . . . Alert | -11 -10 -10 ------- Run | Yrd Mat Sub Maximum Alert Level . | . . . Low Security (%) 100 | 100 100 . Level 1 . | . . . Level 2 . | . . . Level 3 . | . . . Level 4 . | . . . Level 5 . | . . . High Security . | . . . Max Security . | . . . Peak Influence 107 | . 107 . Initial . | . . . Average 37 | . 41 . Influence Increases 254 | . 204 50 Destroy 0b10 Robot/C 200 | . 160 40 Destroy 0b10 Robot/NC 10 | . 10 . Destroy Leader 44 | . 34 10 Influence Decreases 254 | . 174 80 Entered New Map 15 | . . 15 Time Decay 219 | . 174 45 Lost Part 20 | . . 20 Squads Dispatched . | . . . Investigation . | . . . Extermination . | . . . Reinforcement . | . . . Assault . | . . . Garrison . | . . . Intercept . | . . . Searches Triggered . | . . . Construction Impeded . | . . . Haulers Reinforced . | . . . Active Scanning Responses . | . . . Cargo Convoy Interrupts . | . . . Stealth | -11 -10 -10 --------- Run | Yrd Mat Sub Distress Signals 1 | . 1 . Communications Jammed . | . . . Distress Signals . | . . . Times Spotted 23 | . 11 12 Peak Tracking Total 4 | . 4 4 Tactical Retreats . | . . . Traps | -11 -10 -10 ------- Run | Yrd Mat Sub Traps Triggered 3 | . . 3 Indirectly . | . . . Trap Hack Attempts . | . . . Triggered . | . . . Disarmed . | . . . Reprogrammed . | . . . Reused . | . . . Traps Extracted . | . . . Installed . | . . . Triggered . | . . . Machines | -11 -10 -10 ---------- Run | Yrd Mat Sub Machines Disabled . | . . . Max in Single Turn . | . . . Machines Repaired . | . . . Machines Dismantled . | . . . Machines Sabotaged . | . . . Overloaded Fab Kills . | . . . Hacking | -11 -10 -10 --------- Run | Yrd Mat Sub Machines Accessed 3 | . 2 1 Terminals 2 | . 2 . Fabricators . | . . . Repair Stations . | . . . Recycling Units . | . . . Scanalyzers . | . . . Garrison Access . | . . . Total Hacks 4 | . 3 1 Successful 3 | . 2 1 Failed 1 | . 1 . Catastrophic . | . . . Database Lockouts . | . . . Manual 2 | . 2 . Terminals 3 | . 3 . Fabricators . | . . . Repair Stations . | . . . Recycling Units . | . . . Scanalyzers . | . . . Garrison Access . | . . . Terminal Hacks 2 | . 1 1 Open Door 1 | . . 1 Zone Layout 1 | . 1 . Fabricator Hacks . | . . . Repair Station Hacks . | . . . Recycling Unit Hacks . | . . . Scanalyzer . | . . . Garrison Access Hacks . | . . . Unauthorized Hacks 1 | . 1 . Terminals 1 | . 1 . Botnet 1 | . 1 . Fabricators . | . . . Repair Stations . | . . . Recycling Units . | . . . Scanalyzers . | . . . Garrison Access . | . . . Data Cores Recovered . | . . . Used . | . . . Hacking Detections 2 | . 2 . Full Trace Events . | . . . Feedback Events . | . . . Feedback Blocked . | . . . Robot Schematics Acquired . | . . . Robots Built . | . . . Authchips . | . . . Time . | . . . Total Robot Build Rating . | . . . Part Schematics Acquired . | . . . Parts Built . | . . . Authchips . | . . . Time . | . . . Total Part Build Rating . | . . . Parts Repaired . | . . . Time . | . . . Parts Recycled . | . . . Recycled Matter . | . . . Retrieved Matter . | . . . Retrieved Components . | . . . Parts Scanalyzed . | . . . Part Schematics Acquired . | . . . Parts Damaged . | . . . Bothacking | -11 -10 -10 ------------ Run | Yrd Mat Sub Used RIF Installer . | . . . Robots Hacked . | . . . Non-combat . | . . . Combat . | . . . Robot Hacks Applied . | . . . Relay Couplers Released . | . . . Fabnet Peak Effective % . | . . . Robots Rewired . | . . . Allies Hacked . | . . . Hacks Repelled . | . . . Allies | -11 -10 -10 -------- Run | Yrd Mat Sub Total Allies . | . . . Largest Group . | . . . Highest-Rated Group . | . . . Highest-Rated Ally . | . . . Total Orders . | . . . Ally Attacks . | . . . Total Damage . | . . . Kills . | . . . Allies Corrupted . | . . . Allies Melted . | . . . Intel | -11 -10 -10 ------- Run | Yrd Mat Sub Active Infowar (turns) . | . . . Robot Analysis Total . | . . . Derelict Logs Recovered . | . . . Drone Launches . | . . . Drone Recoveries . | . . . Exploration | -11 -10 -10 ------------- Run | Yrd Mat Sub Turns Passed 1687 | 46 451 1190 Spaces Moved 1146 | 45 279 822 Core 29 | 6 . 23 Treads . | . . . Legs . | . . . Wheels 1117 | 39 279 799 Hover . | . . . Flight . | . . . Fastest Speed 50 | 50 80 80 Average Speed 102 | 76 80 111 Slowest Speed 450 | 80 80 450 Overloaded Moves . | . . . Propulsion Burnouts . | . . . Robots Hopped . | . . . Potential Cave-ins . | . . . Cave-ins Triggered . | . . . Exploration Rate (%) 33 | 4 52 45 Regions Visited 2 Branch Regions 1 Pre-discovered Areas 1 | . . 1 Known Exits Taken . | . . . Unknown Exits Taken 2 | 1 1 . Scrap Searched 3 | . . 3 Spaces Dug . | . . . Terrain Destroyed 1 | . . 1 Melee . | . . . Projectile 1 | . . 1 AOE . | . . . Terrain Rammed . | . . . Walls Destroyed . | . . . Machines Disabled . | . . . Actions | -11 -10 -10 --------- Run | Yrd Mat Sub Total 1543 | 56 458 1029 Wait 298 | . 149 149 Move 1144 | 44 278 822 Hop . | . . . Pick Up 20 | 6 5 9 Fast Attach 4 | . . 4 Attach 9 | 6 1 2 Detach . | . . . Swap 5 | . 1 4 Drop 6 | . . 6 Fire 57 | . 24 33 Melee . | . . . Ram . | . . . Kick . | . . . Crush . | . . . Escape Stasis . | . . . Rewire . | . . . Trap . | . . . Miscellaneous . | . . . Route ------- -11/Scrapyard -10/Materials (discovered 3 exits: [*Mat] / [*Min] / *Sub) -10/Subcaves (discovered 2 exits: [*Mat x2]) History --------- Turn | Location | Event 5 | -11/Scrapyard | Discovered new exit (range 15) 47 | -11/Scrapyard | Entered Materials 178 | -10/Materials | Discovered new exit (range 5) 318 | -10/Materials | Build established: Mutant 325 | -10/Materials | Discovered new exit (range 9) 370 | -10/Materials | Discovered new exit (range 15) 498 | -10/Materials | Entered Subcaves 499 | -10/Subcaves | Approached by a straggling Scientist 580 | -10/Subcaves | Core integrity fell below 50% 902 | -10/Subcaves | Shifting Twisted Machinery released Sub. Beam Cannon 907 | -10/Subcaves | Discovered new exit (range 11) 908 | -10/Subcaves | Shifting Twisted Machinery released Sub. Laser 999 | -10/Subcaves | Discovered new exit (range 15) 1031 | -10/Subcaves | Core integrity fell below 20% 1620 | -10/Subcaves | Learned location of Zion (-7) 1620 | -10/Subcaves | Met a Zionite searching for "candidates" 1688 | -10/Subcaves | Destroyed by Autobeam Turret with Autobeam Last Messages --------------- CG-P99(z): "She is not going to be happy we haven't found any suitable candidates yet." DR-A8R(c): "I think it's somewhere north of here" Connecting with UFD SUBCON Station... Current location identified: Subcaves >>Open Door Sealed Heavy Doors opened. Sub. Power Source shoots sparks and powers down. DR-A8R(c): "I think it's somewhere north of here" CG-P99(z): "Hey you! It's really dangerous down here, I feel that you could die at any moment. For your health and safety might I suggest a trip to Zion?" World map updated: -7/Zion. DR-A8R(c): "I think it's somewhere north of here" [Achievement: Back For More] Map ----- +----------------------------------------------------+ | ??????????#### ## ###??????????????????????????? | | ??????????# ### ##?????????????????????????? | | ??????????# ##????????????????????????? | | ??????????# #????????????????????????? | | ??????????## ### #???????????????????????? | | ####???????# #?######???????????????????????? | | ##?????## #??????????????????????????????? | | #?????# ##?????????????????????????????? | | ##????# ##????????????????????????????? | | ###### #????????????????????????????? | | ####??????????????????????????? | | #### ##?????t???????????????????? | | ## # ## #???? ?????????????????? | | # ## ### # #????? ??????????????????? | | # ### ##?### #????? ??????????????????? | | #?###????# ###???? #??????????????????? | | ###??????# #### #?? #??????????????????? | | ## ??#### ##?# #? #??????????????????? | | ### ### # ####? #? #??????????????????? | | # ### #? ## #??????????????????? | | ## #?? #??????????????????? | | # # ##? #??????????????????? | | ?##???## ## ### #??????????????????? | | ???????# ## ## #??????????????????? | | ???????# ## c ##?????????????????? | | # ???????# @ ##????????????????? | | ? ????????# #????????????? | | ???????# ##????????????? | | ???????# ## #?????????????? | | ???????# ###### #### #?????????????? | | ???????## #????## ##???? #????????????? | | ????????# ?????## #?????? #????????????? | | ????????# ?????## #??????? #????????????? | | ??????? ??????# #???????#????????????? | | ?????? #?????? #???????????????????? | | ????? #?????? #???????????????????? | | ????? #?????? ##???????????????????? | | ????? ##?????? ##????????????????????? | | ??????? #???????###?????????????????????? | | ?????????? ##???????????????????????????????? | | ????????????# #?????????????????????????????????? | | ?????????????????????????????????????????????????? | | ?????????????????????????????????????????????????? | | ???????????????????????????????????????????####### | | ??????????????????????????????????????????## # | | ??????????????????????????????????????????# ## | | ???????????????????????????????????????#### ####? | | ??????????????????????????????????????## ##???? | | ??????????????????????????????????????# #????? | | ?????????????????????????????????######% ####??### | +----------------------------------------------------+ Best States ------------- Heat Dissipation 25 Energy Generation 15 Energy Capacity 250 Matter Stores 300 Matter Capacity 300 Sight Range 16 Terrain Scan Density 10 Core Shielding 20 Evasion (%) 44 Item Schematics ----------------- None Robot Schematics ------------------ None Fabricated ------------ Nothing Repaired ---------- Nothing Alien Tech Used ----------------- None Achievements -------------- Back For More Challenges ------------ None Game ------ Seed TeslaImprinterJets Manual? 0 Play Time 00:12:46 Cumulative 28.5 hours Start 2025.09.22 @ 01:24:09 End 2025.09.22 @ 01:34:03 Sessions 1 Manual Loads 0 Difficulty Rogue Special Mode None Game No. 50 Rogue 29 Adventurer 21 Explorer 0 Win Type - Total 1 Types 0/0/0/0/0/0/0/1/0/0 Lore% 51 Gallery% 33 Achievement% 39 Wizard Run 0 Options --------- Layout 1 ASCII 0 Keyboard 0 Movement Mouse Keybinds 0 Fullscreen 2 Font 24/Smallcaps Map View 50x35 Zoom Use 0% Tactical HUD 0 Map Filters NONE Filters NONE Steam 1 RUN: ddf2bc0a-f566-4bd9-8c11-14ebaac91298